[Event "17th Paracin Open 2024"]
[Site "Paracin"]
[Date "2024.07.05"]
[Round "3.1"]
[White "Eren, Ataberk"]
[Black "Fier, Alexandr"]
[Result "0-1"]
[ECO "B90"]
[WhiteElo "2407"]
[BlackElo "2602"]
[Annotator "TA"]
[PlyCount "80"]
[EventDate "2024.07.02"]
[EventType "swiss"]
[EventCountry "SRB"]
[SourceTitle "playchess.com"]
[Source "ChessBase"]
[SourceQuality "1"]
[TimeControl "5400+30"]

{[%evp 12,80,24,24,14,0,22,0,0,0,0,0,0,-18,0,-35,-10,-25,-32,-27,-41,-74,-36,-27,-23,-41,-54,-39,-31,-73,-68,-137,-136,-163,-177,-266,-238,-285,-289,-296,-226,-229,-115,-101,-103,-238,-223,-273,-280,-393,-371,-445,-427,-666,-661,-668,-656,-665,-650,-933,-933,-1343,-1131,-1350,-1328,-1357,-1324,-29983,-29984,-29985,-29985]} 1. e4 {[%emt 0:00:04]} c5 {[%emt 0:00:06]} 2. Nf3 {[%emt 0:01:09]} d6 {[%emt 0:00:05]} 3. d4 {[%emt 0:00:04]} cxd4 {[%emt 0:00:03]} 4. Nxd4 {[%emt 0:00:03]} Nf6 {[%emt 0:00:06]} 5. Nc3 {[%emt 0:00:05]} a6 {[%emt 0:00:04]} 6. h3 {[%emt 0:01:02]} e5 {[%emt 0:00:06]} 7. Nb3 {[%emt 0:00:05]} Be6 {[%emt 0:00:28]} 8. f4 {[%emt 0:00:17][%cal Bf2f4,Bf4f5][%mdl 32]} Be7 {[%emt 0:01:09]} 9. f5 {[%emt 0:00:15]} Bd7 {[%emt 0:00:14] The position is equal.} 10. g4 {[%emt 0:00:36]} Bc6 {[%emt 0:00:22]} 11. Bg2 {[%emt 0:00:18]} h6 {[%emt 0:00:15]} 12. Qe2 {[%emt 0:00:56]} b5 {[%emt 0:06:33]} 13. Be3 {[%emt 0:00:56]} b4 {[%emt 0:02:24]} 14. Nd5 {[%emt 0:04:04]} Nxd5 {[%emt 0:00:06]} 15. exd5 {[%emt 0:00:05]} Bb5 $36 {[%emt 0:00:04][%mdl 2048] Black has good play.} 16. Qf3 {[%emt 0:01:34]} Bh4+ {[%emt 1:26:25]} 17. Bf2 {[%emt 0:00:16]} Nd7 {[%emt 0:00:00]} 18. O-O-O {[%emt 0:07:46]} Bxf2 {[%emt 0:00:00]} 19. Qxf2 {[%emt 0:00:06]} a5 {[%emt 0:00:00]} 20. Kb1 {[%emt 0:08:11]} Qb6 {[%emt 0:00:00]} 21. Qe1 {[%emt 0:01:08]} (21. Qxb6 $15 Nxb6 22. Rhe1) 21... O-O $17 {[%emt 0:00:00]} 22. Nc1 {[%emt 0:13:09]} Rfc8 {[%emt 0:00:00]} 23. g5 {[%emt 0:01:43] White is weak on the dark squares} (23. Bf3 $142) 23... hxg5 $19 {[%emt 0:00:00]} 24. h4 {[%emt 0:00:36]} g4 {[%emt 0:00:00]} 25. h5 {[%emt 0:00:36]} Qd8 {[%emt 0:00:00]} 26. Qe3 {[%emt 0:02:11]} Nb6 {[%emt 0:00:00]} (26... Qf6 $19 27. Rhg1 Qh6 (27... Qxf5 $2 28. Be4 $17) 28. Qxh6 gxh6) 27. h6 $17 {[%emt 0:14:33]} Nc4 {[%emt 0:00:00]} 28. Qg3 {[%emt 0:00:07] White does not recover from this.} (28. Qe4 $17 Qg5 29. hxg7 Kxg7 30. f6+ Qxf6 (30... Kxf6 31. Rdf1+ Ke7 32. Rxf7+ Kxf7 33. Qh7+ Kf8 34. Qh8+ Qg8 35. Qf6+ Ke8 36. Rh8 $11) 31. Qxg4+ Qg6 32. Rh7+ Kg8 (32... Kxh7 $2 33. Be4 $18) 33. Qxg6+ fxg6 34. Re7) 28... Qg5 $1 $19 {[%emt 0:00:00][%csl LRf5,LRh6]} 29. hxg7 {[%emt 0:00:24]} Kxg7 {[%emt 0:00:00][%cal Oc4e3]} (29... Qxf5 30. Qh4 Na3+ 31. bxa3 Qxc2+ 32. Ka1 Qc3+ 33. Kb1 Qc2+ 34. Ka1 Qc3+ 35. Kb1 Qc2+ $11) 30. Rh4 {[%emt 0:10:46]} (30. Nd3 {is a better defense.} Rh8 (30... Qxf5 $2 31. Bh3 $19) 31. Rhg1) 30... Ne3 $1 {[%emt 0:00:00][%cal Oc8c2]} (30... Qxf5 31. Rxg4+ (31. Qxg4+ $2 Qxg4 32. Rxg4+ Kf8 $19) 31... Kf8 32. Bh3 $11) 31. Rdh1 {[%emt 0:01:01] aiming for Rh5.} Rxc2 {[%emt 0:00:00][%cal Oa8c8] ...Rac8! is the strong threat.} (31... Nxf5 32. Rxg4 Kf6 33. Rxg5 $18) 32. Be4 {[%emt 0:05:35] [#]} (32. Rh7+ $142 Kf6 33. Be4 Nxf5 34. Qe1 Rxc1+ 35. Qxc1 Qxc1+ 36. Kxc1) 32... Rxc1+ $1 {[%emt 0:00:00]} 33. Rxc1 {[%emt 0:00:10]} Qf4 $1 {[%emt 0:00:00] Active counter play!} (33... Nxf5 $2 34. Rxg4 (34. Qxg4 Kf6 $17) 34... Nxg3 35. Rxg5+ Kf6 36. Rxg3 $18) 34. Qxf4 {[%emt 0:06:01]} exf4 {[%emt 0:00:00]} 35. Rch1 {[%emt 0:00:05]} Kf6 {[%emt 0:00:00]} 36. Kc1 {[%emt 0:00:26]} Ke5 {[%emt 0:00:00]} (36... Nxf5 37. Rxg4 Ng3 38. Re1 Rc8+ 39. Kd1 $11) 37. Bb1 {[%emt 0:00:10]} f3 {[%emt 0:00:00][%cal Of3f2] ...f2! would now be deadly.} 38. Kd2 {[%emt 0:00:25]} Kf4 {[%emt 0:00:00][%cal Of3f2] Strongly threatening ...f2!} (38... Nxf5 39. Rxg4 f2 40. Rg5 $18) 39. Re1 {[%emt 0:00:35]} f2 {[%emt 0:00:00]} (39... Nxf5 $2 {is the wrong capture.} 40. Re4+ Kg5 41. Rexg4+ (41. Rhxg4+ Kh5 $18) 41... Kf6 42. Rf4 $18) 40. Rxe3 {[%emt 0:00:06]} f1=N+ {[%emt 0:00:00] Weighted Error Value: White=0.90/Black=0.08 (flawless) .  Mistake:       	White=5     	Black=1      Inaccurate:     	White=3     	Black=1      OK:         	White=7     	Black=13     Best:        	---       	Black=3      Strong:       	---       	Black=1      Brilliant:      	---       	Black=1} (40... f1=B $2 {too greedy.} 41. Re4+ Kg5 42. Rexg4+ (42. Rhxg4+ Kf6 $18) 42... Kf6 43. Ke3 $18) 0-1

[Event "17th Paracin Open 2024"]
[Site "Paracin"]
[Date "2024.07.05"]
[Round "3.2"]
[White "Tippa, Aswath Srisai"]
[Black "Narayanan, Srinath"]
[Result "1/2-1/2"]
[ECO "E51"]
[WhiteElo "1647"]
[BlackElo "2533"]
[Annotator "TA"]
[PlyCount "35"]
[EventDate "2024.07.02"]
[EventType "swiss"]
[EventCountry "SRB"]
[SourceTitle "playchess.com"]
[Source "ChessBase"]
[SourceQuality "1"]
[TimeControl "5400+30"]

{[%evp 14,35,51,0,34,6,25,19,16,16,11,9,15,10,10,9,26,29,24,23,29,17,28,2]} 1. d4 {[%emt 0:00:11]} d5 {[%emt 0:01:00]} 2. c4 {[%emt 0:00:14]} dxc4 {[%emt 0:00:09]} 3. Nf3 {[%emt 0:01:16]} Nf6 {[%emt 0:00:07]} 4. e3 {[%emt 0:00:23]} e6 {[%emt 0:00:05]} 5. Bxc4 {[%emt 0:00:06]} Be7 {[%emt 0:00:31]} 6. O-O {[%emt 0:00:27]} O-O {[%emt 0:00:05]} 7. Nc3 {[%emt 0:01:24]} c5 {[%emt 0:00:15]} 8. a3 {[%emt 0:06:51]} (8. Qe2 $14) 8... a6 {[%emt 0:00:46]} 9. dxc5 {[%emt 0:03:27]} Qxd1 {[%emt 0:07:46]} 10. Rxd1 {[%emt 0:00:15] Black must now prevent Na4.} Bxc5 {[%emt 0:00:07] The position is equal.} 11. b4 {[%emt 0:05:49]} Be7 {[%emt 0:00:22]} 12. Be2 {[%emt 0:02:11]} b5 {[%emt 0:00:52]} 13. Nd2 {[%emt 0:05:29]} Bb7 {[%emt 0:01:54]} 14. Nb3 {[%emt 0:00:29]} Nc6 {[%emt 0:01:31]} 15. Bb2 {[%emt 0:01:47]} Rfd8 {[%emt 0:01:44]} 16. f3 {[%emt 0:02:39]} Rxd1+ {[%emt 0:02:15]} 17. Rxd1 {[%emt 1:06:02]} Rd8 {[%emt 0:00:06]} 18. Rxd8+ {[%emt 0:00:00] An uneventful encounter.   Weighted Error Value: White=0.10 (very precise) /Black=0.09 (flawless) .  Inaccurate:     	White=2     	---        OK:         	White=4     	Black=4      Best:        	---       	Black=1} 1/2-1/2

[Event "17th Paracin Open 2024"]
[Site "Paracin"]
[Date "2024.07.05"]
[Round "3.3"]
[White "Fernandez, Daniel Howard"]
[Black "Kushagra Mohan"]
[Result "1/2-1/2"]
[ECO "A00"]
[WhiteElo "2526"]
[BlackElo "2367"]
[Annotator "TA"]
[PlyCount "94"]
[EventDate "2024.07.02"]
[EventType "swiss"]
[EventCountry "SRB"]
[SourceTitle "playchess.com"]
[Source "ChessBase"]
[SourceQuality "1"]
[TimeControl "5400+30"]

{[%evp 9,94,-33,-23,-34,-20,-29,-45,-32,-41,-31,-23,-35,-33,-18,-22,-46,-30,-41,-37,-25,-33,-37,-34,-45,-37,-27,-12,-14,0,-18,-8,-24,0,0,0,-46,-8,-23,-25,-23,-20,-21,-20,-21,-14,-35,-27,-29,-28,-24,-22,-18,-14,-30,-12,-19,-13,-15,-18,-12,-8,-8,-8,-8,0,0,0,0,0,0,0,0,0,0,0,0,0,0,8,8,8,8,8,8,8,8,8]} 1. Nc3 {[%emt 0:01:34]} Nf6 {[%emt 0:00:34]} 2. Nf3 {[%emt 0:01:06]} d5 {[%emt 0:00:36][%cal Bd7d5,Bd5d4][%mdl 32]} 3. g3 {[%emt 0:00:23]} d4 {[%emt 0:01:31]} 4. Nb1 {[%emt 0:00:19][%cal Bc3b1,Bb1a3,Ba3c4][%mdl 32]} c5 {[%emt 0:00:23]} 5. Bg2 {[%emt 0:01:22]} Nc6 {[%emt 0:01:25]} 6. d3 {[%emt 0:00:03]} e5 {[%emt 0:00:33]} 7. e3 {[%emt 0:01:14]} Bd6 {[%emt 0:02:54]} 8. Na3 {[%emt 0:04:50] Black is slightly better.} O-O {[%emt 0:00:21]} 9. O-O {[%emt 0:00:51]} h6 {[%emt 0:00:29]} 10. Nc4 {[%emt 0:00:14]} Bc7 {[%emt 0:00:07]} 11. exd4 {[%emt 0:09:47]} exd4 {[%emt 0:02:08]} 12. Re1 {[%emt 0:00:51]} Re8 {[%emt 0:02:36]} 13. a4 {[%emt 0:15:04]} Bf5 {[%emt 0:05:53]} 14. Rxe8+ {[%emt 0:08:50]} Qxe8 {[%emt 0:00:05]} 15. Bd2 {[%emt 0:00:07]} Qd7 {[%emt 0:01:31]} 16. Qf1 {[%emt 0:00:10]} Re8 {[%emt 0:00:21]} 17. Re1 {[%emt 0:00:13]} Rxe1 {[%emt 0:06:33]} 18. Qxe1 {[%emt 0:00:16]} Qe6 {[%emt 0:00:19]} 19. Kf1 {[%emt 0:01:55]} Nd5 {[%emt 0:05:46]} 20. Nh4 {[%emt 0:15:06]} Qxe1+ {[%emt 0:01:11]} 21. Kxe1 {[%emt 0:00:03]} Be6 {[%emt 0:00:05]} 22. Be4 {[%emt 0:00:30]} (22. Nf5 $11) 22... Nde7 {[%emt 0:11:40]} 23. Ng2 {[%emt 0:00:56]} f5 {[%emt 0:02:02]} 24. Bf3 {[%emt 0:00:13]} Bd5 {[%emt 0:03:42]} 25. Ke2 {[%emt 0:03:14]} Kf7 {[%emt 0:02:23]} 26. h4 {[%emt 0:00:10]} Kf6 {[%emt 0:03:58]} 27. Ne1 {[%emt 0:03:03]} g5 {[%emt 0:02:15]} 28. hxg5+ {[%emt 0:07:50]} hxg5 {[%emt 0:00:12]} 29. Bxd5 {[%emt 0:01:08]} Nxd5 {[%emt 0:00:03]} 30. c3 {[%emt 0:00:11]} a6 {[%emt 0:15:59][%cal Ba7a6,Ba6b5,Bb5b4][%mdl 32]} 31. Kd1 {[%emt 0:04:00]} g4 {[%emt 0:06:23]} 32. Nc2 $1 {[%emt 0:00:25] The position is equal.} b5 {[%emt 0:00:56]} 33. axb5 {[%emt 0:00:03]} axb5 {[%emt 0:00:04] [#] Strongly threatening ...dxc3.} 34. N4a3 {[%emt 0:00:11]} dxc3 {[%emt 0:00:12]} 35. bxc3 {[%emt 0:00:02]} b4 {[%emt 0:00:14]} 36. Nb5 {[%emt 0:00:03] c4 would now be deadly.} Be5 {[%emt 0:03:06][%cal Rd5c3]} 37. Ne3 {[%emt 0:01:52]} Nxc3+ {[%emt 0:01:39]} 38. Nxc3 {[%emt 0:00:17]} bxc3 {[%emt 0:00:33]} 39. Bxc3 {[%emt 0:00:03]} Bxc3 {[%emt 0:01:33]} 40. Nd5+ {[%emt 0:00:02]} Ke5 {[%emt 0:00:05]} 41. Nxc3 $11 {[%emt 0:00:06][%mdl 4096] Endgame. KN-KN} f4 {[%emt 0:00:23]} 42. gxf4+ {[%emt 0:04:12]} Kxf4 {[%emt 0:00:12]} 43. Na4 {[%emt 0:00:11]} Kf3 {[%emt 0:00:43]} 44. Ke1 {[%emt 0:00:08]} Nb4 {[%emt 0:00:17]} 45. Nxc5 {[%emt 0:00:05]} g3 {[%emt 0:00:09]} 46. fxg3 {[%emt 0:00:04]} Nxd3+ {[%emt 0:00:08]} 47. Nxd3 {[%emt 0:00:05]} Kxg3 {[%emt 0:00:05] Weighted Error Value: White=0.05 (flawless) /Black=0.05 (flawless) .  Mistake:       	White=1     	---        Inaccurate:     	---       	Black=1      OK:         	White=17    	Black=9      Best:        	White=2     	Black=2      Strong:       	White=1     	---} 1/2-1/2

[Event "17th Paracin Open 2024"]
[Site "Paracin"]
[Date "2024.07.05"]
[Round "3.4"]
[White "Damljanovic, Branko"]
[Black "Mardov, Dimitar"]
[Result "0-1"]
[ECO "A07"]
[WhiteElo "2364"]
[BlackElo "2484"]
[Annotator "TA"]
[PlyCount "82"]
[EventDate "2024.07.02"]
[EventType "swiss"]
[EventCountry "SRB"]
[SourceTitle "playchess.com"]
[Source "ChessBase"]
[SourceQuality "1"]
[TimeControl "5400+30"]

{[%evp 16,82,-4,-25,-18,-16,-20,-38,-44,-46,-33,-45,-53,-83,-72,-96,-13,-10,0,-12,0,-14,0,0,0,-7,0,0,0,0,39,29,32,13,25,0,0,0,0,0,0,0,0,0,8,0,0,0,0,-14,-9,-22,-24,-37,-31,-66,-59,-81,-68,-153,-58,-129,-157,-139,-57,-59,-11,-52,-56]} 1. Nf3 {[%emt 0:00:03]} d5 {[%emt 0:00:20]} 2. g3 {[%emt 0:00:10]} Bg4 {[%emt 0:00:15]} 3. Bg2 {[%emt 0:00:11]} c6 {[%emt 0:00:39]} 4. b3 {[%emt 0:00:24]} Nd7 {[%emt 0:01:08]} 5. Bb2 {[%emt 0:00:03]} e6 {[%emt 0:02:20]} 6. d3 {[%emt 0:00:39]} Ngf6 {[%emt 0:04:04]} 7. Nbd2 {[%emt 0:00:08]} Bd6 {[%emt 0:01:26]} 8. O-O {[%emt 0:00:18]} O-O {[%emt 0:00:48]} 9. Qe1 {[%emt 0:01:10]} Re8 {[%emt 0:20:21]} 10. e4 {[%emt 0:01:25] [#] e5 is the strong threat.} e5 {[%emt 0:00:28]} 11. Nh4 {[%emt 0:02:55]} Qc7 {[%emt 0:02:37]} 12. a3 {[%emt 0:02:56]} a5 {[%emt 0:01:04]} 13. Kh1 {[%emt 0:01:19]} Be6 {[%emt 0:03:37]} 14. Nf5 {[%emt 0:07:54]} Bxf5 {[%emt 0:07:41]} 15. exf5 {[%emt 0:00:02]} g5 {[%emt 0:51:12]} ({Black should try} 15... a4 $17 16. Qb1 axb3 17. cxb3 h5) 16. fxg6 {[%emt 0:02:30]} hxg6 {[%emt 0:00:00]} 17. Qe2 {[%emt 0:00:23]} Bf8 {[%emt 0:00:00]} 18. Rae1 {[%emt 0:00:39]} Bg7 {[%emt 0:00:00]} 19. Qd1 {[%emt 0:00:25]} Qd6 {[%emt 0:00:00]} 20. Kg1 {[%emt 0:13:21]} Re7 {[%emt 0:00:00]} 21. Re2 {[%emt 0:02:10]} Rae8 {[%emt 0:00:00]} 22. c4 {[%emt 0:05:15]} Nh5 {[%emt 0:00:00]} 23. cxd5 {[%emt 0:06:05]} cxd5 {[%emt 0:00:00]} 24. Rfe1 {[%emt 0:00:07]} Nc5 {[%emt 0:00:00]} 25. Nf3 {[%emt 0:12:33][%cal Of3e5]} e4 {[%emt 0:00:00]} 26. dxe4 {[%emt 0:00:43]} Bxb2 {[%emt 0:00:00]} 27. Rxb2 {[%emt 0:00:07] Strongly threatening e5.} Nxe4 {[%emt 0:00:00]} 28. b4 {[%emt 0:07:39]} Ng7 {[%emt 0:00:00]} 29. Rf1 {[%emt 0:05:10]} axb4 {[%emt 0:00:00]} 30. axb4 {[%emt 0:04:35]} Ne6 {[%emt 0:00:00]} 31. Qd3 {[%emt 0:00:48]} Rc7 {[%emt 0:00:00][%cal Be7c7,Bc7c4,Bc4d4,Bd4d2,Bd2b2][%mdl 32]} 32. Rb3 {[%emt 0:06:39]} Rc4 {[%emt 0:00:00]} 33. Nd2 {[%emt 0:01:24][%cal Rd2e4]} Rd4 {[%emt 0:00:00]} (33... Rxb4 $2 {too greedy.} 34. Nxe4 (34. Bxe4 Nc5 $11) 34... Rxe4 35. Bxe4 $18) 34. Nxe4 {[%emt 0:00:02]} dxe4 {[%emt 0:00:00]} 35. Qb5 {[%emt 0:00:03]} Re7 {[%emt 0:00:00]} 36. Rbb1 {[%emt 0:00:25]} Rd2 {[%emt 0:01:16]} 37. Rbc1 {[%emt 0:02:42]} (37. Bxe4 Nd4 38. Qc5 Qxc5 39. bxc5 Rxe4 $19) (37. Qc4 $15) 37... Kg7 {[%emt 0:01:28]} ({Better is} 37... Nd4 $17 38. Rc8+ Kg7) 38. Rc8 {[%emt 0:02:07]} (38. Bxe4 $2 {is the wrong capture.} Nd4 39. Qc5 Ne2+ 40. Kg2 Nxc1 (40... Rxe4 $2 41. Qxd6 Rxd6 42. Rc2 $19) 41. Bxb7 Qxc5 (41... Rxb7 $2 42. Qxd6 Rxd6 43. Rxc1 $19) 42. bxc5 Rxb7 $19) (38. Qc4 $15) 38... Nd4 $17 {[%emt 0:02:02]} 39. Qc5 {[%emt 0:02:05]} Qf6 {[%emt 0:02:02] Some like it hot. Black is much more active.} (39... Qxc5 $17 40. bxc5 Nf3+ 41. Bxf3 exf3) 40. Ra8 $15 {[%emt 0:08:04] [#] Qc8 would now be deadly.} Ne6 {[%emt 0:00:46]} (40... Nc6 $15 {was preferrable.}) 41. Qe3 {[%emt 0:01:38]} Rb2 {[%emt 0:00:35] Weighted Error Value: White=0.14 (very precise) /Black=0.19 (very precise) .  Mistake:       	White=2     	Black=4      Inaccurate:     	White=3     	Black=1      OK:         	White=9     	Black=14     Best:        	White=1     	Black=1} 0-1

[Event "17th Paracin Open 2024"]
[Site "Paracin"]
[Date "2024.07.05"]
[Round "3.5"]
[White "Bhattacharyya Soham"]
[Black "Damjanovic, Vuk"]
[Result "1/2-1/2"]
[ECO "D37"]
[WhiteElo "2477"]
[BlackElo "2361"]
[Annotator "TA"]
[PlyCount "42"]
[EventDate "2024.07.02"]
[EventType "swiss"]
[EventCountry "SRB"]
[SourceTitle "playchess.com"]
[Source "ChessBase"]
[SourceQuality "1"]
[TimeControl "5400+30"]

{[%evp 9,42,12,23,6,26,27,23,34,33,19,33,13,32,27,42,10,31,30,19,22,20,22,45,41,50,36,30,35,17,16,27,27,27,14,10]} 1. d4 {[%emt 0:01:03]} d5 {[%emt 0:02:34]} 2. c4 {[%emt 0:00:38][%cal Bc2c4,Bc4c5][%mdl 32]} e6 {[%emt 0:00:26]} 3. Nf3 {[%emt 0:00:14]} Nf6 {[%emt 0:00:40][%cal Bg8f6,Bf6e4,Be4c3][%mdl 32]} 4. Nc3 {[%emt 0:00:57]} a6 {[%emt 0:01:44]} 5. c5 {[%emt 0:01:09]} Nc6 {[%emt 0:01:18]} 6. h3 {[%emt 0:02:59]} Ne4 {[%emt 0:04:22][%cal Oe6e5]} 7. Bf4 {[%emt 0:14:37]} Nxc3 {[%emt 0:05:21]} 8. bxc3 {[%emt 0:00:07] White has an edge.} b6 {[%emt 0:00:21]} 9. cxb6 {[%emt 0:04:40]} cxb6 {[%emt 0:00:08]} 10. e3 {[%emt 0:05:21]} Bd6 {[%emt 0:01:50]} 11. Bxd6 {[%emt 0:01:31]} Qxd6 {[%emt 0:00:09]} 12. Qb1 {[%emt 0:09:06]} b5 {[%emt 0:18:38]} 13. Bd3 {[%emt 0:16:29]} h6 {[%emt 0:02:27]} 14. O-O {[%emt 0:10:24]} O-O {[%emt 0:01:15]} 15. a4 {[%emt 0:01:20]} bxa4 {[%emt 0:07:14]} 16. Rxa4 {[%emt 0:05:01]} a5 {[%emt 0:00:19]} 17. Qa2 {[%emt 0:06:10]} Ba6 {[%emt 0:09:12]} 18. Bxa6 {[%emt 0:00:51]} Rxa6 {[%emt 0:00:06]} 19. Ra1 {[%emt 0:04:17]} Rb8 {[%emt 0:01:10]} 20. c4 {[%emt 0:00:17]} dxc4 {[%emt 0:01:09]} 21. Rxc4 {[%emt 0:01:15]} e5 {[%emt 0:09:53] Weighted Error Value: White=0.06 (flawless) /Black=0.08 (flawless) .  Inaccurate:     	White=1     	---        OK:         	White=6     	Black=4} 1/2-1/2

[Event "17th Paracin Open 2024"]
[Site "Paracin"]
[Date "2024.07.05"]
[Round "3.6"]
[White "Bashirli, Nail"]
[Black "Bryakin, Mikhail"]
[Result "0-1"]
[ECO "B19"]
[WhiteElo "2327"]
[BlackElo "2469"]
[Annotator "TA"]
[PlyCount "136"]
[EventDate "2024.07.02"]
[EventType "swiss"]
[EventCountry "SRB"]
[SourceTitle "playchess.com"]
[Source "ChessBase"]
[SourceQuality "1"]
[TimeControl "5400+30"]

{[%evp 42,136,-273,-265,-92,-98,-91,-95,-86,-95,-97,-102,-101,-106,-106,-104,-106,-98,-106,-105,-89,-87,-54,-64,-56,-57,-49,-78,-70,-77,-62,-77,-77,-94,-66,-68,-64,-187,-145,-177,-156,-159,-69,-67,-68,-64,-64,-56,-56,-60,-61,-68,-13,-68,-68,-68,-68,-68,-68,-68,-68,-68,-68,-152,-131,-256,-77,-90,-89,-432,-446,-372,-342,-687,-645,-1083,-1083,-1083,-1072,-1083,-1083,-1582,-670,-5911,-648,-29968,-29970,-29976,-29977,-29978,-29979,-29979,-29980,-29981,-29982,-29983,-29984]} 1. e4 {[%emt 0:00:22]} c6 {[%emt 0:01:43]} 2. d4 {[%emt 0:00:11]} d5 {[%emt 0:00:07]} 3. Nc3 {[%emt 0:00:27]} dxe4 {[%emt 0:00:16]} 4. Nxe4 {[%emt 0:00:06]} Bf5 {[%emt 0:00:12]} 5. Ng3 {[%emt 0:00:06]} Bg6 {[%emt 0:00:07]} 6. h4 {[%emt 0:00:06]} h6 {[%emt 0:00:07]} 7. Nf3 {[%emt 0:00:05]} Nd7 {[%emt 0:00:08]} 8. h5 {[%emt 0:00:06]} Bh7 {[%emt 0:00:07]} 9. Bd3 {[%emt 0:00:05]} Bxd3 {[%emt 0:00:09]} 10. Qxd3 {[%emt 0:00:04]} e6 {[%emt 0:00:09]} 11. Bd2 {[%emt 0:00:07]} Ngf6 {[%emt 0:00:09]} 12. O-O-O {[%emt 0:00:06]} Be7 {[%emt 0:00:06]} 13. Ne4 {[%emt 0:00:08]} Nxe4 {[%emt 0:00:12]} 14. Qxe4 {[%emt 0:00:20]} Nf6 {[%emt 0:00:04] B19: Classical Caro-Kann: 4...Bf5 main line.} 15. Qd3 {[%emt 0:00:08]} c5 {[%emt 0:00:06] is the legacy move (15...Qd5).} 16. Ne5 {[%emt 0:16:33]} O-O {[%emt 0:01:16]} 17. dxc5 {[%emt 0:43:59]} Qc7 {[%emt 0:00:50]} 18. Bc3 {[%emt 0:02:12]} Qxc5 {[%emt 0:07:28]} 19. Qf3 {[%emt 0:05:42]} Rac8 {[%emt 0:15:46]} 20. Rh4 $146 {[%emt 0:09:50]} ({Predecessor:} 20. Kb1 Nd5 21. Rh3 Nxc3+ 22. Qxc3 Qxf2 23. Qb3 Qe2 24. Rhh1 Qxe5 {0-1 Minyeyevtsev,S (2203)-Tiggelman,R (2205) BEL-chT2 0304 2003 (2)}) 20... b5 {[%emt 0:00:36]} 21. Qe2 {[%emt 0:11:52]} Nd5 {[%emt 0:04:17]} 22. Bd4 {[%emt 0:02:17]} Qxc2+ $2 {[%emt 0:17:13]} (22... Qc7 $19 {has better winning chances.} 23. Rg4 f5) 23. Qxc2 $17 {[%emt 0:00:03]} Rxc2+ {[%emt 0:00:06]} (23... Bxh4 $2 24. Bc5 $18) (23... Nb4 $6 24. Qxc8 Rxc8+ 25. Kb1 Bxh4 26. Bxa7 $11) 24. Kxc2 {[%emt 0:00:04]} Bxh4 {[%emt 0:00:07]} 25. Bxa7 {[%emt 0:00:11] [#]} Ra8 $1 {[%emt 0:00:41]} 26. Bd4 {[%emt 0:01:22]} (26. Nc6 $2 Rc8 27. Kb1 Rxc6 $19) 26... Rxa2 {[%emt 0:01:13]} 27. Kb3 {[%emt 0:02:45]} Ra4 {[%emt 0:00:32]} 28. g3 {[%emt 0:02:22]} Bf6 {[%emt 0:04:12]} 29. Nc6 {[%emt 0:01:41]} Rc4 {[%emt 0:05:00]} 30. Bxf6 {[%emt 0:02:10]} gxf6 {[%emt 0:00:20]} 31. Nd4 {[%emt 0:00:00]} Kf8 {[%emt 0:00:15]} 32. Rd2 $1 {[%emt 0:00:25]} Ke8 {[%emt 0:04:29]} 33. Nf5 {[%emt 0:00:27]} Rg4 {[%emt 0:14:43]} (33... Rb4+ $5 34. Ka3 Ra4+ 35. Kb3 Rg4 $17) 34. Rd4 {[%emt 0:00:35]} (34. Nxh6 $2 Rg5 35. g4 Re5 $17) 34... Rg5 {[%emt 0:01:29]} ({Don't play} 34... exf5 $6 35. Rxd5 Rg5 (35... f4 36. Rd4 $11) 36. Rxb5 $11) 35. Nd6+ $1 {[%emt 0:00:24]} Ke7 {[%emt 0:00:13]} 36. Nxb5 {[%emt 0:00:03]} Rxh5 {[%emt 0:00:05]} 37. Ra4 {[%emt 0:00:56]} Rh2 {[%emt 0:00:12]} 38. Ra7+ {[%emt 0:00:09]} Kf8 {[%emt 0:24:45]} 39. f4 {[%emt 0:00:55]} (39. Nc3 $15) 39... Rg2 {[%emt 0:00:00]} 40. Nd6 {[%emt 0:00:03]} Rxg3+ {[%emt 0:00:00]} 41. Kc4 {[%emt 0:00:02]} Rg4 {[%emt 0:00:00]} (41... Nxf4 42. Rxf7+ Kg8 43. Rxf6 $11) (41... Rg1 $17 42. Rxf7+ Kg8) 42. Kc5 $1 $15 {[%emt 0:00:37]} Nxf4 {[%emt 0:00:00]} 43. Rxf7+ {[%emt 0:00:34]} Kg8 {[%emt 0:00:00]} 44. Rxf6 {[%emt 0:00:33]} h5 $1 {[%emt 0:00:00]} 45. b4 $1 {[%emt 0:00:44]} Nd3+ {[%emt 0:00:51]} 46. Kc6 {[%emt 0:00:05]} Ne5+ {[%emt 0:01:43]} (46... Nxb4+ $2 47. Kd7 $19) (46... Rxb4 $15 47. Rxe6 h4) 47. Kc7 {[%emt 0:00:47]} (47. Kb5 $11) 47... Rxb4 $15 {[%emt 0:00:52]} 48. Rxe6 {[%emt 0:00:06]} Ng4 $1 {[%emt 0:00:27]} 49. Rg6+ {[%emt 0:01:18]} Kh7 {[%emt 0:00:16]} 50. Rg5 {[%emt 0:00:03]} Nf6 $1 {[%emt 0:00:18]} 51. Kd8 {[%emt 0:00:21]} Rg4 {[%emt 0:00:35]} 52. Rf5 {[%emt 0:00:32]} (52. Ra5 $15) 52... Kg6 $17 {[%emt 0:00:15]} 53. Ke7 {[%emt 0:00:13]} (53. Rf3 $17 {is a better defense.}) 53... Nh7 $2 {[%emt 0:00:37]} (53... Ne4 $19 {And now ...Nxd6 would win.} 54. Rf8 Nxd6 55. Kxd6 Re4) 54. Rf3 {[%emt 0:00:58]} Ra4 {[%emt 0:00:39]} 55. Rf1 $2 {[%emt 0:01:05][%mdl 8192]} (55. Rf2 $17 {is a better chance.}) 55... h4 $19 {[%emt 0:00:29]} 56. Nf5 {[%emt 0:00:30]} h3 {[%emt 0:00:10]} 57. Rh1 $2 {[%emt 0:00:30]} (57. Kd6 Ng5 58. Ne3) 57... Ng5 $19 {[%emt 0:00:25]} ({Not} 57... Kxf5 58. Rxh3 Ng5 59. Rh1 $17) 58. Ng3 {[%emt 0:00:26]} Ra3 {[%emt 0:00:42]} 59. Nf1 {[%emt 0:00:30]} Kf5 {[%emt 0:00:31]} 60. Nh2 {[%emt 0:00:33]} Re3+ {[%emt 0:00:18]} 61. Kd6 {[%emt 0:00:08]} Kf4 {[%emt 0:00:27]} 62. Ra1 {[%emt 0:00:54]} Rd3+ {[%emt 0:00:28]} (62... Ne4+ $142 63. Kc6 Nd2) 63. Ke7 {[%emt 0:00:09]} Kg3 {[%emt 0:00:50]} 64. Ra2 {[%emt 0:00:27]} Rd1 {[%emt 0:00:18]} 65. Kf6 {[%emt 0:00:34]} Ne4+ {[%emt 0:00:34]} 66. Kf5 {[%emt 0:00:49]} Nf2 {[%emt 0:00:15]} 67. Rb2 {[%emt 0:00:31]} Kxh2 {[%emt 0:00:26]} 68. Rxf2+ {[%emt 0:01:04]} Kg1 {[%emt 0:00:31]} 0-1